bitfinex/quotes_BTCUSD_20260104
["timestamp","ask_amount","ask_price","bid_price","bid_amount"]
[1767507390149,0.01092096,91567.0,91563.0,0.01092144]
[1767507390459,0.000999,91563.0,91561.0,0.01092168]
[1767507390656,0.00095391,91563.0,91561.0,0.01092168]
[1767507390840,0.01092108,91566.0,91562.0,0.01092156]
[1767507391156,0.01092108,91566.0,91557.0,0.05461036]
[1767507391157,0.01092144,91563.0,91557.0,0.05461036]
[1767507391365,0.1041317,91564.0,91557.0,0.05461036]
[1767507391366,0.01092132,91564.0,91563.0,0.0064162]
[1767507391567,0.0655269,91566.0,91564.0,4.5e-05]
[1767507391947,0.0109212,91565.0,91560.0,0.01092179]
[1767507392153,0.01092132,91564.0,91560.0,0.01092179]
[1767507392453,0.01092144,91563.0,91559.0,0.01092191]
[1767507393081,0.01092156,91562.0,91558.0,0.06553176]
[1767507393283,0.000954,91559.0,91557.0,0.01092215]
[1767507393484,0.01092156,91562.0,91557.0,0.01092215]
[1767507393684,0.01092156,91562.0,91558.0,0.01092203]
[1767507394459,0.01092144,91563.0,91558.0,0.01092203]
[1767507395298,0.01092156,91562.0,91558.0,0.01092203]
[1767507395496,0.01092144,91563.0,91559.0,0.01092191]
[1767507395741,0.01092156,91562.0,91558.0,0.01092203]
[1767507396150,0.01092168,91561.0,91556.0,0.01092227]
[1767507396350,0.01092191,91559.0,91554.0,0.03280251]
[1767507396551,0.01092179,91560.0,91556.0,0.01092227]
[1767507396758,0.01092156,91562.0,91557.0,0.01092215]
[1767507397259,0.01092156,91562.0,91558.0,0.01092203]
[1767507397619,0.01092144,91563.0,91559.0,0.01092191]
[1767507397827,0.01092156,91562.0,91557.0,0.01092215]
[1767507398025,0.01092144,91563.0,91559.0,0.01092191]
[1767507398220,0.01092144,91563.0,91557.0,0.06553246]
[1767507398221,0.01092156,91562.0,91557.0,0.06553246]
[1767507398422,0.01092156,91562.0,91558.0,0.01092203]
[1767507400065,0.01092144,91563.0,91558.0,0.01092203]
[1767507400248,0.01092144,91563.0,91559.0,0.01092191]
[1767507400645,0.01092156,91562.0,91558.0,0.01092203]
[1767507401220,0.01092168,91561.0,91556.0,0.06553344]
[1767507401338,0.01092168,91561.0,91557.0,0.01092215]
[1767507401889,0.01092156,91562.0,91558.0,0.01092203]
[1767507402196,0.0328012,91565.0,91562.0,4.5e-05]
[1767507402578,0.0154638,91565.0,91562.0,4.5e-05]
[1767507402758,0.01092156,91562.0,91558.0,0.01092203]
[1767507403184,0.01092156,91562.0,91557.0,0.01092215]
[1767507403362,0.01092156,91562.0,91558.0,0.01092203]
[1767507403560,0.01092144,91563.0,91558.0,0.01092203]
[1767507403762,0.01092144,91563.0,91559.0,0.01092191]
[1767507403966,0.0154638,91565.0,91559.0,0.01092191]
[1767507404170,0.07006982,91565.0,91563.0,4.5e-05]
[1767507404378,0.0154638,91565.0,91560.0,0.01092179]
[1767507404577,0.0154638,91565.0,91561.0,0.01092168]
[1767507404767,0.0154638,91565.0,91561.0,0.0102945]
[1767507405163,0.0154638,91565.0,91562.0,0.01092156]
[1767507408658,0.0154638,91565.0,91561.0,0.0102945]
[1767507408859,0.0154638,91565.0,91562.0,0.01092156]
[1767507409021,0.0154638,91565.0,91561.0,0.0102945]
[1767507409221,0.0154638,91565.0,91562.0,0.01092156]
[1767507410338,0.0154638,91565.0,91561.0,0.0102945]
[1767507410568,0.026385,91565.0,91561.0,0.0102945]
[1767507410793,0.026385,91565.0,91561.0,0.01092168]
[1767507411070,0.0154638,91565.0,91561.0,0.01092168]
[1767507411573,0.0154638,91565.0,91562.0,0.01092156]
[1767507412196,0.0154188,91565.0,91562.0,0.06552895]
[1767507413989,0.05923147,91568.0,91564.0,0.01092132]
[1767507414188,0.02188,91566.0,91563.0,0.0546068]
[1767507414389,0.02188,91566.0,91562.0,0.01092156]
[1767507414592,0.02188,91566.0,91563.0,0.01092144]
[1767507415223,0.01092096,91567.0,91563.0,0.01092144]
[1767507415417,0.02188,91566.0,91563.0,0.01092144]
[1767507415796,0.03280108,91566.0,91562.0,0.01092156]
[1767507416382,0.0109212,91565.0,91561.0,0.01092168]
[1767507416846,0.03280108,91566.0,91561.0,0.01092168]
[1767507417571,0.03280108,91566.0,91562.0,0.01092156]
[1767507417791,0.03280108,91566.0,91561.0,0.01092168]
[1767507418267,0.03280108,91566.0,91562.0,0.01092156]
[1767507418463,0.03280108,91566.0,91561.0,0.01092168]
[1767507418464,0.0109212,91565.0,91561.0,0.01092168]
[1767507418602,0.03280108,91566.0,91562.0,0.01092156]
[1767507419317,0.03280108,91566.0,91561.0,0.01092168]
[1767507419489,0.03280108,91566.0,91562.0,0.01092156]
[1767507419857,0.000999,91562.0,91559.0,0.01092191]
[1767507420072,0.0009539,91562.0,91559.0,0.01092191]
[1767507420389,0.01092132,91564.0,91560.0,0.01092179]
[1767507420888,0.01092132,91564.0,91559.0,0.01092191]
[1767507421056,0.01092132,91564.0,91560.0,0.01092179]
[1767507421256,0.01092132,91564.0,91558.0,0.01598407]
[1767507421461,0.01092144,91563.0,91559.0,0.01092191]
[1767507421793,0.01092132,91564.0,91559.0,0.01092191]
[1767507421956,0.01,91559.0,91556.0,0.06553311]
[1767507422289,0.01,91559.0,91556.0,0.01092227]
[1767507422521,0.01,91559.0,91557.0,0.05461078]
[1767507422704,0.01092144,91563.0,91558.0,0.01092203]
[1767507423141,0.01092156,91562.0,91557.0,0.01092215]
[1767507423346,0.01092156,91562.0,91558.0,0.01092203]
[1767507423544,0.01092168,91561.0,91558.0,0.04409772]
[1767507424292,0.01092156,91562.0,91558.0,0.04409772]
[1767507424696,0.01092156,91562.0,91558.0,0.05501975]
[1767507425243,0.05461211,91555.0,91545.0,0.0001524]
[1767507425430,0.06553668,91552.0,91546.0,0.01092347]
[1767507425664,0.01092287,91551.0,91547.0,0.01092335]
[1767507425987,0.01092299,91550.0,91545.0,0.01092358]
[1767507426187,0.01092311,91549.0,91545.0,0.0559753]
[1767507426405,0.01092311,91549.0,91543.0,0.05461867]
[1767507426406,0.01092347,91546.0,91543.0,0.04505172]
[1767507426622,0.01087837,91546.0,91541.0,0.01092406]
[1767507426831,0.01092335,91547.0,91542.0,0.01092394]
[1767507427034,0.01092299,91550.0,91545.0,0.01092358]
[1767507427211,0.01092299,91550.0,91541.0,0.06554434]
[1767507427212,0.06553887,91549.0,91541.0,0.01092406]
[1767507427415,0.06553887,91549.0,91543.0,0.01092382]
[1767507427416,0.0009539,91545.0,91543.0,0.01092382]
[1767507427632,0.0009539,91545.0,91538.0,0.04505172]
[1767507427633,0.0009539,91545.0,91539.0,0.0109243]
[1767507427836,0.01092323,91548.0,91543.0,0.01092382]
[1767507428012,0.01092323,91548.0,91544.0,0.0109237]
[1767507428438,0.01092335,91547.0,91543.0,0.01092382]
[1767507428616,0.000954,91544.0,91542.0,0.01092394]
[1767507428816,0.01092347,91546.0,91542.0,0.01092394]
[1767507429217,0.02188,91549.0,91542.0,0.06554308]
[1767507429503,0.01092335,91547.0,91543.0,0.01092382]
[1767507429703,0.08741871,91549.0,91534.0,0.06554922]
[1767507429704,0.05461973,91542.0,91534.0,0.06554922]
[1767507429940,0.01083386,91541.0,91535.0,0.01092478]
[1767507430143,0.01083386,91541.0,91533.0,0.01092502]
[1767507430144,0.0109243,91539.0,91533.0,0.01092502]
[1767507430337,0.0108793,91539.0,91534.0,0.0109249]
[1767507430515,0.0108793,91539.0,91535.0,0.01092478]
[1767507430929,0.01092442,91538.0,91533.0,0.05597674]
[1767507431135,0.06554562,91540.0,91535.0,0.01092478]
[1767507431136,0.01092418,91540.0,91535.0,0.01092478]
[1767507431338,0.0109243,91539.0,91535.0,0.01092478]
[1767507431534,0.0109243,91539.0,91534.0,0.01088089]
[1767507431739,0.0109243,91539.0,91533.0,0.05597674]
[1767507431740,0.01092454,91537.0,91533.0,0.05597674]
[1767507432193,0.01092454,91537.0,91533.0,0.04505172]
[1767507432333,0.01092454,91537.0,91531.0,0.02188]
[1767507432334,0.05462388,91536.0,91531.0,0.02188]
[1767507432539,0.12653464,91532.0,91496.0,0.06041823]
[1767507432768,0.01092478,91535.0,91472.0,0.0001524]
[1767507432769,0.01092657,91520.0,91511.0,0.01092764]
[1767507432960,0.01092705,91516.0,91512.0,0.01002553]
[1767507433170,0.0109274,91513.0,91505.0,0.01092836]
[1767507433363,0.01092836,91505.0,91502.0,0.06683172]
[1767507433560,0.05464123,91506.0,91502.0,0.02178]
[1767507433561,0.01092824,91506.0,91502.0,0.02178]
[1767507433929,0.010928,91508.0,91502.0,0.03270872]
[1767507434126,0.010928,91508.0,91504.0,0.01092848]
[1767507434323,0.01092788,91509.0,91505.0,0.01092836]
[1767507434567,0.01092788,91509.0,91504.0,0.01103591]
[1767507434943,0.01092764,91511.0,91505.0,0.01092836]
[1767507435128,0.01092788,91509.0,91506.0,0.04505172]
[1767507435360,0.01092788,91509.0,91505.0,0.01092836]
[1767507435840,0.01092705,91516.0,91511.0,0.04505172]
[1767507436040,0.04281734,91519.0,91514.0,0.055979]
[1767507436280,0.05463027,91525.0,91514.0,0.04505172]
[1767507436478,0.01092633,91522.0,91519.0,0.04505172]
[1767507436632,0.01092621,91523.0,91519.0,0.04505172]
[1767507436827,0.01092609,91524.0,91519.0,0.05597841]
[1767507437068,0.01092609,91524.0,91520.0,0.05597829]
[1767507437605,0.01092609,91524.0,91519.0,0.01092669]
[1767507437606,0.01092621,91523.0,91519.0,0.05597841]
[1767507438673,0.01092597,91525.0,91519.0,0.11061145]
[1767507439015,0.06605751,91530.0,91523.0,0.04505172]
[1767507439141,0.05462813,91528.0,91523.0,0.04505172]
[1767507439340,0.01092514,91532.0,91527.0,0.05597745]
[1767507439657,0.01092466,91536.0,91528.0,0.11060538]
[1767507439658,0.06554825,91536.0,91528.0,0.11060538]
[1767507439857,0.01092442,91538.0,91533.0,0.05597674]
[1767507440096,0.01107658,91540.0,91534.0,0.06693172]
[1767507440341,0.01107658,91540.0,91534.0,0.07785662]
[1767507440525,0.0109243,91539.0,91535.0,0.01092478]
[1767507440727,0.0109243,91539.0,91534.0,0.07785662]
[1767507440938,0.01107658,91540.0,91534.0,0.07785662]
[1767507440939,0.01107658,91540.0,91536.0,0.01092466]
[1767507441084,0.0001524,91540.0,91537.0,0.05597626]
[1767507441768,0.0001524,91540.0,91537.0,0.01092454]
[1767507442447,0.0001524,91540.0,91537.0,0.06554706]
[1767507443644,0.0001524,91540.0,91538.0,0.05462158]
[1767507447249,0.02945207,91577.0,91536.0,0.01092466]
[1767507447250,0.01092275,91552.0,91540.0,0.04505172]
[1767507447468,0.01092275,91552.0,91546.0,0.01092347]
[1767507447469,0.01092299,91550.0,91546.0,0.01092347]
[1767507447692,0.000999,91546.0,91543.0,0.01092382]
[1767507448156,0.01092311,91549.0,91545.0,0.01092358]
[1767507448368,0.01092311,91549.0,91545.0,0.00723332]
[1767507449213,0.06553728,91551.0,91545.0,0.00723332]
[1767507449381,0.01092299,91550.0,91546.0,0.01092347]
[1767507451103,0.01092287,91551.0,91547.0,0.01092335]
[1767507451331,0.01092287,91551.0,91548.0,0.02188]
[1767507452323,0.01092287,91551.0,91548.0,0.02178978]
[1767507454951,0.01092215,91557.0,91553.0,0.01092263]
[1767507455111,0.01092203,91558.0,91553.0,0.00928267]
[1767507455310,0.01092215,91557.0,91553.0,0.01092263]
[1767507455513,0.000999,91553.0,91552.0,0.01092275]
[1767507455743,0.01092239,91555.0,91551.0,0.01092287]
[1767507456144,0.01092227,91556.0,91552.0,0.01092275]
[1767507456569,0.01092215,91557.0,91553.0,0.01092263]
[1767507456740,0.01092203,91558.0,91553.0,0.01092263]
[1767507456741,0.01092203,91558.0,91554.0,0.01092251]
[1767507456952,0.01092203,91558.0,91554.0,0.00992351]
[1767507457163,0.01092215,91557.0,91553.0,0.01092263]
[1767507457382,0.01092215,91557.0,91552.0,0.01092275]
[1767507457583,0.01092227,91556.0,91550.0,0.03107403]
[1767507457790,0.01083423,91556.0,91552.0,0.01092275]
[1767507458597,0.01092203,91558.0,91552.0,0.01092275]
[1767507458797,0.01107431,91559.0,91553.0,0.01092263]
[1767507459102,0.0001524,91559.0,91556.0,0.06082209]
[1767507459627,0.01107431,91559.0,91556.0,0.04989982]
[1767507460119,0.01092179,91560.0,91559.0,0.0008466]
[1767507460343,0.01092084,91568.0,91565.0,0.04989982]
[1767507460556,0.01092084,91568.0,91566.0,0.04989982]
[1767507460771,0.01092084,91568.0,91566.0,0.04124274]
[1767507460921,0.01,91566.0,91565.0,0.02188]
[1767507461128,0.01,91566.0,91565.0,0.021728]
[1767507464903,0.01,91566.0,91565.0,0.02163778]
[1767507465861,0.05460527,91567.0,91565.0,0.02163778]
[1767507468414,0.02163778,91584.0,91565.0,0.02163778]
[1767507468415,0.0109175,91596.0,91590.0,0.01091822]
[1767507468622,0.00026072,91595.0,91592.0,0.01091798]
[1767507468935,0.00017268,91595.0,91592.0,0.01091798]
[1767507469109,0.00017268,91595.0,91593.0,0.05458876]
[1767507469519,6.8e-07,91595.0,91594.0,0.04989982]
[1767507471579,6.8e-07,91595.0,91593.0,0.05458876]
[1767507471580,0.01091571,91611.0,91605.0,0.01091643]
[1767507471759,0.010172,91605.0,91604.0,0.01091655]
[1767507471959,0.00991195,91605.0,91604.0,0.01091655]
[1767507472178,0.0112771,91611.0,91605.0,0.05458217]
[1767507472505,0.00036139,91611.0,91608.0,0.01091607]
[1767507472719,0.00027335,91611.0,91608.0,0.01054407]
[1767507474015,3.5e-07,91611.0,91609.0,0.05457979]
[1767507474220,0.0001524,91613.0,91611.0,8.77e-05]
[1767507474398,0.0001524,91613.0,91610.0,0.01091583]
[1767507474839,6.434e-05,91613.0,91610.0,0.01091583]
[1767507475245,6.434e-05,91613.0,91609.0,0.01091595]
[1767507475420,6.434e-05,91613.0,91610.0,0.01091583]
[1767507475869,6.434e-05,91613.0,91610.0,0.01064283]
[1767507476896,0.0099123,91610.0,91605.0,0.05458213]
[1767507477047,0.0099123,91610.0,91607.0,0.01091619]
[1767507477458,0.0099123,91610.0,91606.0,0.01091631]
[1767507477656,0.0099123,91610.0,91607.0,0.01091619]
[1767507478476,0.0109156,91612.0,91607.0,0.01091619]
[1767507478879,0.0109156,91612.0,91606.0,0.01091631]
[1767507479086,0.06549435,91611.0,91605.0,0.01091643]
[1767507479465,0.01091583,91610.0,91606.0,0.01091631]
[1767507479667,0.01091571,91611.0,91607.0,0.01091619]
[1767507480317,0.01091631,91606.0,91600.0,0.01091703]
[1767507480481,0.0099123,91607.0,91592.0,0.01091798]
[1767507480482,0.01091691,91601.0,91592.0,0.01091798]
[1767507480758,0.01091726,91598.0,91593.0,0.02188]
[1767507480979,0.01091714,91599.0,91594.0,0.01091774]
[1767507481211,0.01091703,91600.0,91599.0,0.000999]
[1767507481634,0.02937149,91635.0,91593.0,0.02188]
[1767507481635,0.04672932,91624.0,91608.0,0.01091607]
[1767507481846,0.01091524,91615.0,91609.0,0.05793398]
[1767507482265,0.01091524,91615.0,91609.0,0.01091595]
[1767507482752,0.01091536,91614.0,91605.0,0.05458217]
[1767507482959,0.01091536,91614.0,91608.0,0.01091607]
[1767507483826,0.01091548,91613.0,91605.0,0.05458217]
[1767507484035,0.01091536,91614.0,91607.0,0.06549684]
[1767507484890,0.01091536,91614.0,91610.0,0.01091583]
[1767507485098,0.01091536,91614.0,91607.0,0.06549684]
[1767507485466,0.01091548,91613.0,91607.0,0.06549684]
[1767507485672,0.01091536,91614.0,91609.0,0.01091595]
[1767507486176,0.0108273,91614.0,91609.0,0.01091595]
[1767507486582,0.01091548,91613.0,91608.0,0.01091607]
[1767507486786,0.04672932,91612.0,91605.0,0.0252854]
[1767507486990,0.05764492,91612.0,91606.0,0.05458107]
[1767507487257,0.05764492,91612.0,91608.0,0.01091607]
[1767507488082,0.04672932,91612.0,91609.0,0.01091595]
[1767507488308,0.01091571,91611.0,91606.0,0.01091631]
[1767507488488,0.04672932,91612.0,91608.0,0.01091607]
[1767507488725,0.01091548,91613.0,91609.0,0.01091595]
[1767507488899,0.01091476,91619.0,91613.0,0.0545774]
[1767507489127,0.02188,91618.0,91615.0,0.01091524]
[1767507489536,0.02188,91618.0,91608.0,0.21831975]
[1767507489537,0.01091548,91613.0,91606.0,0.05458127]
[1767507489722,0.01091536,91614.0,91606.0,0.05458127]
[1767507490049,0.01091536,91614.0,91608.0,0.01091607]
[1767507490260,0.0109156,91612.0,91608.0,0.01091607]
[1767507491097,0.01091548,91613.0,91608.0,0.01091607]
[1767507491516,0.01091548,91613.0,91609.0,0.01091595]
[1767507491713,0.01091536,91614.0,91610.0,0.01091583]
[1767507491962,0.01091548,91613.0,91608.0,0.01091607]
[1767507492188,0.01091524,91615.0,91613.0,0.000999]
[1767507492348,0.06549185,91615.0,91613.0,0.000999]
[1767507492546,0.06549185,91615.0,91609.0,0.05793398]
[1767507492547,0.01091536,91614.0,91609.0,0.05793398]
[1767507493233,0.01082729,91614.0,91609.0,0.05793398]
[1767507493467,0.01082729,91614.0,91609.0,0.01091595]
[1767507493672,0.01091536,91614.0,91611.0,0.04701803]
[1767507493872,0.01091524,91615.0,91611.0,0.05793374]
[1767507494047,0.06559716,91619.0,91618.0,0.04701803]
[1767507494249,0.02188,91619.0,91616.0,0.04701803]
[1767507494901,0.02188,91619.0,91613.0,0.06549278]
[1767507495238,0.01091488,91618.0,91614.0,0.01091536]
[1767507495437,0.01082681,91618.0,91614.0,0.05793339]
[1767507495681,0.03279476,91619.0,91614.0,0.05793339]
[1767507496082,0.08007982,91663.0,91614.0,0.05793339]
[1767507496083,0.05456915,91627.0,91618.0,0.01091488]
[1767507496314,0.06548614,91623.0,91619.0,0.000999]
[1767507496461,0.06548614,91623.0,91617.0,0.010915]
[1767507496656,0.0109144,91622.0,91617.0,0.010915]
[1767507496861,0.01091464,91620.0,91614.0,0.01091536]
[1767507497058,0.01091583,91610.0,91602.0,0.01091679]
[1767507497428,0.00999999,91614.0,91595.0,0.01091762]
[1767507497429,0.01091691,91601.0,91595.0,0.01091762]
[1767507497578,0.04672932,91602.0,91597.0,0.01091738]
[1767507497929,0.04672932,91602.0,91597.0,0.06550378]
[1767507498212,0.10131334,91602.0,91596.0,0.0109175]
[1767507498412,0.04672932,91602.0,91599.0,0.01091714]
[1767507498752,0.04672932,91602.0,91600.0,0.05458515]
[1767507498952,0.04672932,91604.0,91599.0,0.01091714]
[1767507499371,0.04672932,91604.0,91601.0,0.01091691]
[1767507499575,0.01091738,91597.0,91592.0,0.01091798]
[1767507499777,0.04672932,91600.0,91596.0,0.0109175]
[1767507499983,0.04672932,91600.0,91597.0,0.01091738]
[1767507500230,0.04672932,91600.0,91596.0,0.0109175]
[1767507500445,0.04672932,91600.0,91594.0,0.06550646]
[1767507500446,0.05764635,91600.0,91594.0,0.06550646]
[1767507500730,0.01091655,91604.0,91596.0,0.05458753]
[1767507500731,0.04672932,91598.0,91596.0,0.05458753]
[1767507500866,0.04672932,91601.0,91597.0,0.01091738]
[1767507501117,0.04672932,91601.0,91598.0,0.01091726]
[1767507501317,0.04672932,91601.0,91597.0,0.01091738]
[1767507501765,0.000999,91597.0,91596.0,0.0109175]
[1767507502165,0.01091691,91601.0,91596.0,0.0109175]
[1767507502391,0.01091691,91601.0,91597.0,0.01091738]
[1767507502565,0.01091691,91601.0,91596.0,0.0109175]
[1767507502916,0.01091703,91600.0,91596.0,0.0109175]
[1767507503235,0.01084812,91601.0,91597.0,0.01091738]
[1767507503430,0.01091703,91600.0,91597.0,0.04601903]
[1767507504185,0.01091667,91603.0,91600.0,0.000999]
[1767507504398,0.01091643,91605.0,91599.0,0.05793517]
[1767507504955,0.01091691,91601.0,91597.0,0.04701803]
[1767507505158,0.01091691,91601.0,91597.0,0.05793541]
[1767507506914,0.01091691,91601.0,91597.0,0.04701803]
[1767507507125,0.01091691,91601.0,91592.0,0.01091798]
[1767507507126,0.0109181,91591.0,91580.0,0.04701803]
[1767507507337,0.01091822,91590.0,91582.0,0.05459588]
[1767507507550,0.01091846,91588.0,91584.0,0.01091893]
[1767507507768,0.01091822,91590.0,91588.0,0.000999]
[1767507507997,0.04672932,91600.0,91588.0,0.000899]
[1767507508180,0.01092013,91595.0,91589.0,0.04701803]
[1767507508335,0.21833217,91604.0,91587.0,0.06551148]
[1767507508336,0.04364,91609.0,91600.0,0.04701803]
[1767507508541,0.0001,91600.0,91593.0,0.02133921]
[1767507508884,0.01091714,91599.0,91593.0,0.01091786]
[1767507509540,0.01091738,91597.0,91593.0,0.01091786]
[1767507509746,0.01091738,91597.0,91592.0,0.01091798]
[1767507509947,0.06550346,91599.0,91592.0,0.01091798]
[1767507510149,0.01091738,91597.0,91592.0,0.01091798]
[1767507510362,0.06550346,91599.0,91592.0,0.01091798]
[1767507510562,0.11544435,91599.0,91592.0,0.01091798]
[1767507510765,0.01091714,91599.0,91594.0,0.01091774]
[1767507511224,0.01091714,91599.0,91595.0,0.01091762]
[1767507511347,0.01091703,91600.0,91595.0,0.01091762]
[1767507511543,0.01091703,91600.0,91593.0,0.01091786]
[1767507511744,0.06085803,91599.0,91594.0,0.01091774]
[1767507511945,0.01091726,91598.0,91593.0,0.01091786]
[1767507512142,0.01091738,91597.0,91592.0,0.01091798]
[1767507513006,0.01091726,91598.0,91593.0,0.01091786]
[1767507513209,0.01091738,91597.0,91591.0,0.0109181]
[1767507513413,0.01091726,91598.0,91592.0,0.01091798]
[1767507513615,0.01091738,91597.0,91591.0,0.0109181]
[1767507513808,0.01091738,91597.0,91592.0,0.01091798]
[1767507514108,0.01091738,91597.0,91591.0,0.0109181]
[1767507514109,0.0109175,91596.0,91591.0,0.0109181]
[1767507514269,0.0109175,91596.0,91590.0,0.01091822]
[1767507515348,0.01091738,91597.0,91591.0,0.0109181]
[1767507515627,0.01091738,91597.0,91592.0,0.01091798]
[1767507516231,0.0109175,91596.0,91592.0,0.00036139]
[1767507516794,0.01091714,91599.0,91592.0,0.00036139]
[1767507516991,0.01091714,91599.0,91592.0,0.01127937]
[1767507517417,0.01141473,91600.0,91592.0,0.01127937]
[1767507517634,0.01091714,91599.0,91592.0,0.01127937]
[1767507517838,0.01141473,91600.0,91594.0,0.01091774]
[1767507518035,0.01141473,91600.0,91595.0,0.01091762]
[1767507518243,0.05026634,91600.0,91595.0,0.01091762]
[1767507518422,0.01141473,91600.0,91594.0,0.01091774]
[1767507518645,0.01141473,91600.0,91595.0,0.01091762]
[1767507519561,0.01141473,91600.0,91594.0,0.01091774]
[1767507520328,0.0004977,91600.0,91594.0,0.06550604]
[1767507520604,0.03279667,91603.0,91600.0,0.0105013]
[1767507520605,0.02188,91603.0,91600.0,0.0105013]
[1767507520811,0.01091607,91608.0,91602.0,0.01091679]
[1767507520990,0.05455595,91609.0,91600.0,0.020873]
[1767507520991,0.01091619,91607.0,91601.0,0.01091691]
[1767507521638,0.01091631,91606.0,91600.0,0.01091703]
[1767507522463,0.01091631,91606.0,91599.0,0.01091714]
[1767507522583,0.01091655,91604.0,91599.0,0.01091714]
[1767507523248,0.04976864,91603.0,91599.0,0.01091714]
[1767507523448,0.01091655,91604.0,91598.0,0.01091726]
[1767507523586,0.06549933,91604.0,91595.0,0.01091762]
[1767507523790,0.000498,91598.0,91587.0,0.01091858]
[1767507523987,0.01141526,91598.0,91593.0,0.01091786]
[1767507524234,0.01141526,91598.0,91592.0,0.01091798]
[1767507524390,0.01141526,91598.0,91594.0,0.04537725]
[1767507524391,0.01091726,91598.0,91594.0,0.04537725]
[1767507524588,0.05458545,91600.0,91594.0,0.04537725]
[1767507524802,0.01091714,91599.0,91594.0,0.05579699]
[1767507525212,0.01091691,91601.0,91594.0,0.05579699]
[1767507525415,0.01091691,91601.0,91595.0,0.01091762]
[1767507525619,0.01091691,91601.0,91594.0,0.01091774]
[1767507525837,0.01091691,91601.0,91593.0,0.01091786]
[1767507526089,0.06501449,91602.0,91595.0,0.01091762]
[1767507526458,0.01091691,91601.0,91595.0,0.01091762]
[1767507526660,0.04313461,91601.0,91595.0,0.01091762]
[1767507527042,0.04313461,91601.0,91594.0,0.01091774]
[1767507527242,0.04313461,91601.0,91594.0,0.01087371]
[1767507527480,0.01091703,91600.0,91593.0,0.01091786]
[1767507527642,0.04313461,91601.0,91594.0,0.01091774]
[1767507528053,0.01091691,91601.0,91595.0,0.04537725]
[1767507528421,0.01091703,91600.0,91594.0,0.01091774]
[1767507528557,0.01091691,91601.0,91594.0,0.01091774]
[1767507528955,0.01091595,91609.0,91602.0,0.04537725]
[1767507529156,0.01091619,91607.0,91603.0,0.04537725]
[1767507529364,0.03279607,91608.0,91601.0,0.01]
[1767507529562,0.03279607,91608.0,91600.0,0.01091703]
[1767507529897,0.01091619,91607.0,91598.0,0.04537725]
[1767507530061,0.01091655,91604.0,91598.0,0.04537725]
[1767507530472,0.01091667,91603.0,91598.0,0.04537725]
[1767507531515,0.01091679,91602.0,91598.0,0.04537725]
[1767507532458,0.01091655,91604.0,91598.0,0.04537725]
[1767507533202,0.01091655,91604.0,91598.0,0.05629451]
[1767507533805,0.01091619,91607.0,91604.0,0.010999]
[1767507534004,0.01091619,91607.0,91598.0,0.05629451]
[1767507534005,0.01091643,91605.0,91599.0,0.01091714]
[1767507534204,0.01091631,91606.0,91599.0,0.01091714]
[1767507534557,0.01091643,91605.0,91598.0,0.04537725]
[1767507534699,0.01091667,91603.0,91598.0,0.04537725]
[1767507534895,0.01091655,91604.0,91598.0,0.04537725]
[1767507535325,0.01091667,91603.0,91598.0,0.04537725]
[1767507535540,0.01091655,91604.0,91598.0,0.04537725]
[1767507536309,0.01091667,91603.0,91598.0,0.04537725]
[1767507536521,0.01091655,91604.0,91598.0,0.04537725]
[1767507537285,0.02937149,91620.0,91598.0,0.04537725]
[1767507537286,0.05457877,91611.0,91600.0,0.06550177]
[1767507537559,0.01091595,91609.0,91601.0,0.01091691]
[1767507538086,0.04976864,91607.0,91599.0,0.03611307]
[1767507538289,0.01091607,91608.0,91599.0,0.04537725]
[1767507538910,0.01091607,91608.0,91602.0,0.01091679]
[1767507539226,0.01091607,91608.0,91599.0,0.09996243]
[1767507539407,0.01091619,91607.0,91600.0,0.01091703]
[1767507539887,0.01091619,91607.0,91601.0,0.01091691]
[1767507540092,0.01091631,91606.0,91600.0,0.01091703]
[1767507540310,0.01091619,91607.0,91600.0,0.01091703]
[1767507540536,0.01091619,91607.0,91600.0,0.010873]
[1767507540742,0.01091607,91608.0,91601.0,0.01091691]
[1767507540940,0.01091619,91607.0,91600.0,0.06087055]
[1767507541143,0.06549616,91609.0,91600.0,0.06087055]
[1767507541144,0.01091595,91609.0,91603.0,0.04999755]
[1767507541366,0.0001524,91632.0,91602.0,0.01091679]
[1767507541367,0.01091512,91616.0,91614.0,0.04999755]
[1767507541622,0.010999,91614.0,91611.0,0.01091571]
[1767507541792,0.01,91614.0,91608.0,0.065496]
[1767507542001,0.01,91614.0,91609.0,0.01091595]
[1767507542374,0.000999,91609.0,91607.0,0.01091619]
[1767507542897,0.01091536,91614.0,91607.0,0.01091619]
[1767507543572,0.05457357,91620.0,91608.0,0.01091607]
[1767507543728,0.010915,91617.0,91609.0,0.01091595]
[1767507543930,0.01091512,91616.0,91610.0,0.01091583]
[1767507544112,0.010915,91617.0,91610.0,0.01091583]
[1767507544474,0.01,91610.0,91608.0,0.01091607]
[1767507544650,0.01,91610.0,91607.0,0.01091619]
[1767507544816,0.01091536,91614.0,91608.0,0.01091607]
[1767507544998,0.01091524,91615.0,91609.0,0.01091595]
[1767507545194,0.01091524,91615.0,91607.0,0.01091619]
[1767507545440,0.01091512,91616.0,91609.0,0.01091595]
[1767507545667,0.010915,91617.0,91610.0,0.01091583]
[1767507545795,0.000999,91610.0,91609.0,0.01091595]
[1767507546202,0.01091524,91615.0,91608.0,0.06091362]
[1767507546390,0.01091512,91616.0,91609.0,0.01091595]
[1767507546608,0.01091488,91618.0,91609.0,0.0609135]
[1767507546795,0.010915,91617.0,91611.0,0.01091571]
[1767507547085,0.01091488,91618.0,91611.0,0.01091571]
[1767507547294,0.03279405,91625.0,91617.0,0.010915]
[1767507547498,0.01091417,91624.0,91616.0,0.01091512]
[1767507547669,0.01091417,91624.0,91617.0,0.010915]
[1767507547890,0.01091417,91624.0,91616.0,0.01081487]
[1767507548071,0.03279405,91625.0,91616.0,0.00529801]
[1767507548392,0.01091417,91624.0,91617.0,0.01086989]
[1767507548594,0.03279405,91625.0,91616.0,0.00529801]
[1767507549162,0.02188,91625.0,91619.0,0.01091476]
[1767507549366,0.02188,91625.0,91618.0,0.01091488]
[1767507550302,0.02188,91625.0,91614.0,0.01091536]
[1767507550303,0.010999,91618.0,91614.0,0.01091536]
[1767507550706,0.000999,91614.0,91613.0,0.01091548]
[1767507551450,0.01091476,91619.0,91612.0,0.0109156]
[1767507551595,0.01091488,91618.0,91610.0,0.23598423]
[1767507551817,0.01091488,91618.0,91611.0,0.01091571]
[1767507552019,0.01062626,91618.0,91612.0,0.0109156]
[1767507552218,0.00071021,91612.0,91610.0,0.24690006]
[1767507552425,0.00860544,91618.0,91612.0,0.0109156]
[1767507552623,0.01091476,91619.0,91612.0,0.0109156]
[1767507552818,0.01091476,91619.0,91613.0,0.01091548]
[1767507553018,0.01091476,91619.0,91611.0,0.00773755]
[1767507553226,0.00071,91613.0,91612.0,0.0109156]
[1767507553422,0.01091464,91620.0,91613.0,0.01091548]
[1767507554471,0.01091464,91620.0,91614.0,0.01091536]
[1767507554984,0.01091464,91620.0,91613.0,0.01091548]
[1767507554985,0.01091476,91619.0,91613.0,0.01091548]
[1767507555151,0.01091464,91620.0,91614.0,0.01091536]
[1767507555320,0.01091464,91620.0,91613.0,0.01091548]